Cogmind - Beta 14 @@@ ROGUE MODE // 2024.08.18 @ 03:54:56 Player: Savant Result: Destroyed by OD-MEF(R) with Subdweller Machine Gun Performance ------------- Evolutions (0) 0 Regions Visited (2) 400 Robots Destroyed (39) 195 Value Destroyed (955) 955 Prototype IDs (11) 220 Alien Tech Used (0) 0 Bonus (0) 0 TOTAL SCORE: 1770 Bonus ------- None Cogmind --------- Core Integrity 0/250 Matter 145/300 Energy 100/100 System Corruption 0% Temperature Warm (149) Movement Core (50) Location -10/Subcaves Parts ------- > --- POWER (1) -------- (None) > --- PROPULSION (2) --- (None) > --- UTILITY (2) ------ (None) > --- WEAPON (2) ------- (None) > --- INVENTORY (5) ---- Subdweller Power Source High-capacity Storage Unit Mining Laser Peak State ------------ > --- POWER ------------ Subdweller Power Source > --- PROPULSION ------- Light Treads Subdweller Monowheel > --- UTILITY ---------- Large Storage Unit Hardened Light Armor Plating > --- WEAPON ----------- Spread Laser Battle Rifle > --- INVENTORY -------- Wheel Subdweller Monowheel Heat Sink High-capacity Storage Unit Structural Scanner Seismic Detector Hardened Light Armor Plating Hardened Light Armor Plating Hacking Suite Riot Gun Spread Laser Subdweller Laser Assault Rifle Subdweller Machine Gun Mining Laser [Rating: 14] Favorites ----------- Power Light Nuclear Core Engine Subdweller Power Source Power Core Light Nuclear Core Propulsion Light Treads Treads Light Treads Wheel Subdweller Monowheel Utility Large Storage Unit Device Seismic Detector Storage Large Storage Unit Processor Signal Interpreter Protection Hardened Light Armor Plating Weapon Assault Rifle Energy Gun Spread Laser Ballistic Gun Assault Rifle Ballistic Cannon Light Cannon Special Weapon Mining Laser Build | -11 -10 -10 ------- Run | Yrd Mat Sub Slots Evolved . | . . . Power . | . . . Propulsion . | . . . Utility . | . . . Weapon . | . . . Parts Attached 75 | 7 26 42 Power 5 | 1 1 3 Engine 4 | 1 . 3 Core 1 | . 1 . Reactor . | . . . Propulsion 9 | 2 1 6 Treads 6 | 2 1 3 Leg . | . . . Wheel 3 | . . 3 Hover . | . . . Flight . | . . . Utility 29 | 2 13 14 Device 13 | 1 5 7 Storage 5 | 1 4 . Processor 1 | . 1 . Hackware . | . . . Protection 10 | . 3 7 Artifact . | . . . Weapon 32 | 2 11 19 Energy Gun 8 | . 3 5 Energy Cannon . | . . . Ballistic Gun 15 | 2 5 8 Ballistic Cannon 2 | . 1 1 Launcher . | . . . Special Weapon 7 | . 2 5 Impact Weapon . | . . . Slashing Weapon . | . . . Piercing Weapon . | . . . Special Melee Weapon . | . . . Unidentified Prototypes . | . . . Parts Lost 14 | . 2 12 Power 2 | . . 2 Propulsion 7 | . 1 6 Utility 2 | . . 2 Weapon 3 | . 1 2 Highest Loss Streak 6 | . 2 6 To Critical Strikes 1 | . . 1 Average Slot Usage (%) 96 | . 100 93 Engine 7 | . 5 9 Core 4 | . 8 . Treads 19 | . 28 9 Wheel 8 | . . 18 Device 7 | . 11 3 Storage 13 | . 14 12 Protection 6 | . 2 10 Energy Gun 10 | . 9 11 Ballistic Gun 14 | . 18 10 Special Weapon 2 | . . 5 Peak Build Rating 14 | 7 13 14 Average Rating 10 | 4 10 12 On Entrance 6 | . 7 13 Naked Turns 2 | . . 2 Heaviest Build 54 | 14 54 38 Greatest Support 40 | 40 40 40 Greatest Overweight (x) 3 | . 1 3 Average Overweight (x) 1 | . . 2 Largest Inventory Capacity 20 | 8 20 15 Average Capacity 14 | 7 15 14 Most Carried 17 | 6 17 15 Average Carried 12 | 3 11 13 Final Capacity 15 | 8 15 5 Final Carried 15 | 5 15 3 Class Distribution -------------------- 79% | Mutant 17% | Scavenger-Mutant Dominant Class ---------------- Mutant | -10/Materials Mutant | -10/Subcaves Resources | -11 -10 -10 ----------- Run | Yrd Mat Sub Matter Collected 1282 | 210 659 413 Remotely . | . . . Salvage Created 1019 | 18 700 301 Parts 75 | 5 50 20 Haulers Intercepted 2 | . 2 . Recyclers Shooed 1 | . 1 . Parts Field Recycled . | . . . Retrieved Matter . | . . . Parts Self-Destructed 9 | . . 9 Prevented . | . . . Kills | -11 -10 -10 ------- Run | Yrd Mat Sub Combat Hostiles Destroyed 29 | . 17 12 Guns 27 | . 16 11 Cannons 2 | . 1 1 Classes Destroyed 8 | 1 6 1 Worker 1 | . 1 . Tunneler 1 | 1 . . Hauler 2 | . 2 . Operator 3 | . 3 . Watcher 3 | . 3 . Swarmer 9 | . 6 3 Grunt 11 | . 11 . Subdweller 9 | . . 9 Best Kill Streak 4 | 1 4 3 Combat Bots Only 3 | . 3 3 Max Kills in Single Turn 2 | 1 2 1 Gunslinging 1 | . 1 . Exploded . | . . . Melee . | . . . Uniques/NPCs Destroyed . | . . . Combat | -11 -10 -10 -------- Run | Yrd Mat Sub Hostile Shots Fired 200 | . 81 119 Missed 49 | . 20 29 Damage Taken 2546 | . 663 1883 Core 267 | . 49 218 Absorbed by Shields . | . . . Core Remaining (%) 100 | 100 . . Volleys Fired 158 | 1 80 77 Largest 2 | 2 2 2 Hottest 120 | 40 100 120 Shots Fired 270 | 2 154 114 Gun 228 | 2 149 77 Cannon 21 | . 3 18 Launcher . | . . . Special 21 | . 2 19 Kinetic 189 | 2 131 56 Thermal 81 | . 23 58 Explosive . | . . . Electromagnetic . | . . . Robot Hit Streak 34 | 1 18 34 Robot Miss Streak 6 | . 6 5 Penetration Max . | . . . Secondary Targets 4 | . 3 1 Max Gunslinging Chain 1 | . 1 1 Shots Hit Robots 176 | 1 95 80 Core Hits 85 | 1 48 36 Critical Kills . | . . . Critical Parts Destroyed 2 | . . 2 Critical Strikes 5 | . 2 3 Burn 2 | . 2 . Destroy 3 | . . 3 Melee Attacks . | . . . Impact . | . . . Slashing . | . . . Piercing . | . . . Sneak Attacks . | . . . Combat Hostiles . | . . . Follow-up Attacks . | . . . Damage Inflicted 2727 | 11 1276 1440 Guns 2442 | 11 1240 1191 Cannons 284 | . 35 249 Explosions . | . . . Melee . | . . . Ramming 1 | . 1 . Kinetic 1878 | 11 1065 802 Thermal 848 | . 210 638 Explosive . | . . . Electromagnetic . | . . . Impact . | . . . Slashing . | . . . Piercing . | . . . Highest Corruption . | . . . Average Corruption . | . . . Corruption Purged . | . . . Corruption Blocked . | . . . Overload Shots . | . . . Overflow Damage . | . . . Projectiles . | . . . Explosions . | . . . Melee . | . . . Knockbacks 6 | . 1 5 Impact . | . . . Kinetic 6 | . 1 5 Secondary . | . . . Self-Inflicted Damage . | . . . Shots . | . . . Rammed 1 | . 1 . Targets Rammed 1 | . 1 . Kicked . | . . . Crushed . | . . . Highest Temperature 274 | . 192 274 Average Temperature 67 | . 51 104 Received Heat Transfer 1002 | . 297 705 Effects 1 | . . 1 Energy Bleed 1 | . . 1 Siege Activations . | . . . Robots Corrupted . | . . . Combat Hostiles . | . . . Parts Fried . | . . . Impact Corruptions . | . . . Robots Melted . | . . . Combat Hostiles . | . . . Parts Melted 2 | . 2 . Heat Transferred 1376 | . 601 775 Parts Sabotaged . | . . . Parts Stolen . | . . . Parts Stripped . | . . . Power Chain Reactions . | . . . Alert | -11 -10 -10 ------- Run | Yrd Mat Sub Peak Influence 198 | 5 198 . Initial 3 | . 3 . Average 62 | 1 65 . Maximum Alert Level . | . . . Low Security (%) 100 | 100 100 . Level 1 . | . . . Level 2 . | . . . Level 3 . | . . . Level 4 . | . . . Level 5 . | . . . High Security . | . . . Max Security . | . . . Squads Dispatched 4 | . 4 . Investigation 2 | . 2 . Extermination . | . . . Reinforcement 2 | . 2 . Assault . | . . . Garrison . | . . . Intercept . | . . . Searches Triggered . | . . . Construction Impeded . | . . . Haulers Reinforced . | . . . Active Scanning Responses . | . . . Cargo Convoy Interrupts . | . . . Stealth | -11 -10 -10 --------- Run | Yrd Mat Sub Distress Signals 1 | . 1 . Communications Jammed . | . . . Distress Signals . | . . . Times Spotted 42 | . 29 13 Peak Tracking Total 3 | . 3 3 Tactical Retreats . | . . . Traps | -11 -10 -10 ------- Run | Yrd Mat Sub Traps Triggered . | . . . Indirectly . | . . . Trap Hack Attempts . | . . . Triggered . | . . . Disarmed . | . . . Reprogrammed . | . . . Reused . | . . . Traps Extracted . | . . . Installed . | . . . Triggered . | . . . Machines | -11 -10 -10 ---------- Run | Yrd Mat Sub Machines Disabled 1 | . 1 . Max in Single Turn 1 | . 1 . Machines Repaired . | . . . Machines Dismantled . | . . . Machines Sabotaged . | . . . Overloaded Fab Kills . | . . . Hacking | -11 -10 -10 --------- Run | Yrd Mat Sub Machines Accessed 10 | . 8 2 Terminals 6 | . 6 . Fabricators . | . . . Repair Stations . | . . . Recycling Units 2 | . 2 . Scanalyzers . | . . . Garrison Access . | . . . Total Hacks 29 | . 23 6 Successful 16 | . 10 6 Failed 13 | . 13 . Catastrophic . | . . . Database Lockouts . | . . . Manual 22 | . 22 . Terminals 20 | . 20 . Fabricators . | . . . Repair Stations . | . . . Recycling Units 3 | . 3 . Scanalyzers . | . . . Garrison Access . | . . . Terminal Hacks 9 | . 3 6 Record 5 | . . 5 Robot Analysis 2 | . 2 . Terminal Index 1 | . 1 . Derelict Proto ID Bank 1 | . . 1 Fabricator Hacks . | . . . Repair Station Hacks . | . . . Recycling Unit Hacks . | . . . Scanalyzer . | . . . Garrison Access Hacks . | . . . Unauthorized Hacks 7 | . 7 . Terminals 5 | . 5 . Assimilate 2 | . 2 . Botnet 2 | . 2 . Operators 1 | . 1 . Fabricators . | . . . Repair Stations . | . . . Recycling Units 2 | . 2 . Tunnel 2 | . 2 . Scanalyzers . | . . . Garrison Access . | . . . Data Cores Recovered . | . . . Used . | . . . Hacking Detections 6 | . 6 . Full Trace Events . | . . . Feedback Events . | . . . Feedback Blocked . | . . . Robot Schematics Acquired . | . . . Robots Built . | . . . Authchips . | . . . Time . | . . . Total Robot Build Rating . | . . . Part Schematics Acquired . | . . . Parts Built . | . . . Authchips . | . . . Time . | . . . Total Part Build Rating . | . . . Parts Repaired . | . . . Time . | . . . Parts Recycled . | . . . Recycled Matter . | . . . Retrieved Matter . | . . . Retrieved Components . | . . . Parts Scanalyzed . | . . . Part Schematics Acquired . | . . . Parts Damaged . | . . . Bothacking | -11 -10 -10 ------------ Run | Yrd Mat Sub Used RIF Installer . | . . . Robots Hacked . | . . . Non-combat . | . . . Combat . | . . . Robot Hacks Applied . | . . . Relay Couplers Released . | . . . Fabnet Peak Effective % . | . . . Robots Rewired . | . . . Allies Hacked . | . . . Hacks Repelled . | . . . Allies | -11 -10 -10 -------- Run | Yrd Mat Sub Total Allies . | . . . Largest Group . | . . . Highest-Rated Group . | . . . Highest-Rated Ally . | . . . Total Orders . | . . . Ally Attacks . | . . . Total Damage . | . . . Kills . | . . . Allies Corrupted . | . . . Allies Melted . | . . . Intel | -11 -10 -10 ------- Run | Yrd Mat Sub Robot Analysis Total 2 | . 2 . Derelict Logs Recovered 2 | . . 2 Drone Launches . | . . . Drone Recoveries . | . . . Exploration | -11 -10 -10 ------------- Run | Yrd Mat Sub Turns Passed 4636 | 96 2334 2206 Spaces Moved 2390 | 51 1058 1281 Core 7 | 4 . 3 Treads 1426 | 47 1058 321 Legs . | . . . Wheels 957 | . . 957 Hover . | . . . Flight . | . . . Fastest Speed 50 | 50 160 50 Average Speed 162 | 151 184 144 Slowest Speed 240 | 160 240 240 Overloaded Moves . | . . . Propulsion Burnouts . | . . . Robots Hopped . | . . . Cave-ins Triggered . | . . . Exploration Rate (%) 52 | 4 97 56 Regions Visited 2 Branch Regions 1 Pre-discovered Areas 4 | . 2 2 Known Exits Taken . | . . . Unknown Exits Taken 2 | 1 1 . Scrap Searched 3 | . . 3 Spaces Dug 1 | . 1 . Terrain Destroyed 1 | . 1 . Melee . | . . . Projectile 1 | . 1 . AOE . | . . . Terrain Rammed . | . . . Walls Destroyed . | . . . Machines Disabled . | . . . Actions | -11 -10 -10 --------- Run | Yrd Mat Sub Total 2815 | 65 1274 1476 Wait 123 | 1 80 42 Move 2388 | 50 1057 1281 Hop . | . . . Pick Up 36 | 6 19 11 Fast Attach 10 | 6 . 4 Attach 13 | 1 5 7 Detach 2 | . 1 1 Swap 52 | . 21 31 Drop 32 | . 10 22 Fire 158 | 1 80 77 Melee . | . . . Ram . | . . . Kick . | . . . Crush 1 | . 1 . Escape Stasis . | . . . Rewire . | . . . Trap . | . . . Miscellaneous . | . . . Route ------- -11/Scrapyard -10/Materials (discovered 6 exits: [*Mat x3] / *Min x2 / *Sub) -10/Subcaves (discovered 1 exit: *Mat) History --------- Turn | Location | Event 7 | -11/Scrapyard | Discovered new exit (range 15) 97 | -11/Scrapyard | Entered Materials 308 | -10/Materials | Build established: Mutant 674 | -10/Materials | Discovered new exit (range 12) 705 | -10/Materials | Discovered new exit (range 15) 837 | -10/Materials | Discovered new exit (range 14) 870 | -10/Materials | Identified exit to Mines 1439 | -10/Materials | Discovered new exit (range 16) 1759 | -10/Materials | Discovered new exit (range 13) 2195 | -10/Materials | Discovered new exit (range 10) 2431 | -10/Materials | Entered Subcaves 2683 | -10/Subcaves | Learned location of Zion (-6) 2792 | -10/Subcaves | Lost 3 parts (2n1u) 2796 | -10/Subcaves | Core integrity fell below 50% 3527 | -10/Subcaves | Shifting Twisted Machinery released Sub. Laser 3527 | -10/Subcaves | Shifting Twisted Machinery released Battle Cannon 4146 | -10/Subcaves | Identified exit to Materials 4152 | -10/Subcaves | Shifting Twisted Machinery released Mak. System Shield 4154 | -10/Subcaves | Shifting Twisted Machinery released Mak. Leg 4174 | -10/Subcaves | Build established: Scavenger-Mutant 4215 | -10/Subcaves | Met a Zionite searching for "candidates" 4288 | -10/Subcaves | Visited Clippyterm 4291 | -10/Subcaves | Learned Factory fabricator intel 4291 | -10/Subcaves | Learned Factory stockpile data 4490 | -10/Subcaves | Visited 4L-MR0's lab 4591 | -10/Subcaves | A Subdweller sparked back to life 4591 | -10/Subcaves | A Subdweller sparked back to life 4591 | -10/Subcaves | A Subdweller sparked back to life 4622 | -10/Subcaves | Core integrity fell below 20% 4635 | -10/Subcaves | Released all parts (2) 4637 | -10/Subcaves | Destroyed by OD-MEF(R) with Subdweller Machine Gun Last Messages --------------- 04597_ 83-O7F(R) affixes Scrap Shield Fragment to Scrap Shield. 04599_ 83-O7F(R) suffers critical hit (Destroy). 04599_ Destroyed Sub. Machine Gun. 04599_ 83-O7F(R) destroyed. 04599_ Scrap Shield destroyed. 04601_ Critical hit (Meltdown: +270). 04610_ UG-5BM(R) affixes Scrap Shield Fragment to Scrap Shield. 04611_ Spk. Treads destroyed. 04611_ Sub. Laser destroyed. 04618_ UG-5BM(R) affixes Scrap Shield Fragment to Scrap Shield. 04629_ Critical hit (Destroy). 04629_ Spk. Treads destroyed. 04629_ Wheel destroyed. 04631_ Sub. Monowheel destroyed. 04631_ Critical hit (Meltdown: +270). 04631_ UG-5BM(R) destroyed. 04633_ Sub. Laser shoots sparks and powers down. 04635_ Overheating: Energy bleed (-33). 04635_ Released Sub. Power Source. 04635_ Released Broken Sub. Laser. Map ----- +----------------------------------------------------+ | ?????????????????????????????????????????????????? | | ?????????????????????????????????????????????????? | | ?????????????????????????????????????????????????? | | ?????????????????????????????????????????????????? | | ?????????????????????????????????????????????????? | | ?????????????????????????????????????????????????? | | ?????????????????????????????????????????????????? | | ?????????????????????????????????????????????????? | | ?????????????????????????????????????????????????? | | ?????????????????????????????????????????????????? | | ?????????????????????????????????????????????????? | | ?????????????????????????????????????????????????? | | ?????????????????????????????????????????????????? | | ?????????????????????###????###??????????????????? | | ???????????????????### ###### #??????????????????? | | ??????????###??????# #??????????????????? | | ??????????# ######## # # ##?????############# | | ??????##### # # ### ## #?##### ## # # # | | ??????# # ### ## ### # # | | ?????## #### ## # ## # ### | | ?????# # ####### ## ## # #######?## | | ?????## # ##??# #############????????? | | ?????## # ###### < ##??????????????#####? | | ?????# ## R<##????????????####### | | ?????## ## ###&* *%;#????????????### ### | | ?????# ### ## #?#%@ [#?????????????## ## | | ?????# ### #?# ##?#&! *#?????????????### # | | ?????## ## ##?###??#######??????????????## | | ?????# #???????????????????????????## | | ?????# ##??????????????????????????### | | ????## #??????????????????????????##### | | ##### #?????????????????????????####### | | " "### ##????????????????????????### ### | | ### #????????????????????????## ## | | #=[ "## #????????????????????????## # | | #![ "## ### #????????????????????????## | | # ^"# #?## #????????????????????????## | | ### ## ##??# #????????????????????????## | | ?# #" #???# ##????????????????????????## | | ?# !![! ##### #?????????????????????????### ### | | ?#!!][[! ## ##?????????????????????????####### | | ## # "! ###???????????????????????????###### | | #" ###" #??????????????????????????????????? | | #" ## #########??????????????????????????? | | # ""### #??????????????????????????? | | ###?# #??????????????????????????? | | ###???## ### #??????????????????????????? | | ??????## ### ##??###??????????????????????????? | | ?????## ##?## ###??????????????????????????????? | | ?????# #???# #??????????????????????????????? | +----------------------------------------------------+ Best States ------------- Heat Dissipation 25 Energy Generation 15 Energy Capacity 250 Matter Stores 300 Matter Capacity 300 Sight Range 16 Terrain Scan Density 10 Armor Coverage 800 Evasion (%) 40 Recoil Reduction 2 Item Schematics ----------------- None Robot Schematics ------------------ None Fabricated ------------ Nothing Alien Tech Used ----------------- None Achievements -------------- None Challenges ------------ None Game ------ Seed TeslaFlyingBattery Manual? 0 Play Time 00:30:15 Cumulative 761.5 hours Start 2024.08.18 @ 03:24:44 End 2024.08.18 @ 03:54:56 Sessions 1 Manual Loads 0 Difficulty Rogue Special Mode None Game No. 152 Rogue 152 Adventurer 0 Explorer 0 Win Type - Total 44 Types 22/4/6/1/2/1/4/2/2 Lore% 81 Gallery% 91 Achievement% 91 Wizard Run 0 Options --------- Layout 0 ASCII 0 Keyboard 0 Movement Numpad Keybinds 0 Fullscreen 1 Font 14/SmallcapsGlow Map View 84x54 Zoom Use 0% Tactical HUD 1 Map Filters NONE Filters NONE Steam 1 RUN: 3b898919-be54-4ff5-ac97-ae54a294b947